[Event "34rd NATO Championship 2024"]
[Site "Rhodes"]
[Date "2024.10.22"]
[Round "3.3"]
[White "Papasimakopoulos, Alexandros"]
[Black "Onley, David E"]
[Result "1-0"]
[ECO "A42"]
[WhiteElo "2372"]
[BlackElo "2040"]
[Annotator "RC"]
[PlyCount "101"]
[EventDate "2024.09.18"]
[EventType "swiss"]
[EventCountry "GRE"]
[SourceTitle "playchess.com"]
[Source "ChessBase"]
[SourceQuality "1"]
[TimeControl "5400+30"]

1. d4 {[%emt 0:06:54]} g6 {[%emt 0:00:16]} 2. e4 {[%emt 0:00:18]} Bg7 {[%emt 0:00:05]} 3. c4 {[%emt 0:01:07]} d6 {[%emt 0:00:13]} 4. Nc3 {[%emt 0:00:07]} e5 {[%emt 0:00:19]} 5. d5 {[%emt 0:03:51]} Ne7 {[%emt 0:01:22]} 6. h4 {[%emt 0:01:29]} h5 {[%emt 0:02:43]} 7. Bd3 {[%emt 0:05:10]} c6 {[%emt 0:01:32]} 8. Nge2 {[%emt 0:00:56]} a6 {[%emt 0:03:51]} 9. Ng3 {[%emt 0:00:45]} cxd5 {[%emt 0:02:57]} 10. cxd5 {[%emt 0:00:07]} b5 {[%emt 0:00:37]} 11. b4 {[%emt 0:00:13]} f5 {[%emt 0:06:22]} 12. Bg5 {[%emt 0:00:18]} f4 {[%emt 0:03:27]} 13. Nf1 {[%emt 0:00:54]} O-O {[%emt 0:03:11]} 14. a4 {[%emt 0:02:55]} bxa4 {[%emt 0:03:58]} 15. Qxa4 {[%emt 0:00:07]} Qc7 {[%emt 0:03:29]} 16. Ra3 {[%emt 0:04:02]} Bf6 {[%emt 0:05:16]} 17. Qa5 {[%emt 0:01:40]} Qxa5 {[%emt 0:07:00]} 18. Rxa5 {[%emt 0:00:06]} Bxg5 {[%emt 0:04:58]} 19. hxg5 {[%emt 0:00:06]} Bb7 {[%emt 0:01:57]} 20. Nd2 {[%emt 0:00:24]} Nd7 {[%emt 0:02:47]} 21. Nc4 {[%emt 0:00:57]} Nc8 {[%emt 0:03:30]} 22. Na4 {[%emt 0:00:23]} Kf7 {[%emt 0:04:31]} 23. Kd2 {[%emt 0:00:08]} Ke7 {[%emt 0:00:14]} 24. Rb1 {[%emt 0:00:10]} Rh8 {[%emt 0:02:46]} 25. Nc5 {[%emt 0:00:20]} Rb8 {[%emt 0:10:26]} 26. Nxb7 {[%emt 0:03:00]} Rxb7 {[%emt 0:00:07]} 27. Rxa6 {[%emt 0:00:04]} h4 {[%emt 0:01:38]} 28. Na5 {[%emt 0:00:19]} Rb6 {[%emt 0:02:36]} 29. Ra8 {[%emt 0:00:33]} Kf7 {[%emt 0:04:20]} 30. Rc1 {[%emt 0:02:34]} Rb8 {[%emt 0:01:41]} 31. Rxb8 {[%emt 0:00:07]} Nxb8 {[%emt 0:00:05]} 32. Rc7+ {[%emt 0:00:07]} Ne7 {[%emt 0:00:18]} 33. Nc6 {[%emt 0:00:18]} Nbxc6 {[%emt 0:02:10]} 34. dxc6 {[%emt 0:00:06]} f3 {[%emt 0:00:35]} 35. Bc4+ {[%emt 0:09:21]} Kf8 {[%emt 0:02:53]} 36. Bf1 {[%emt 0:01:15]} fxg2 {[%emt 0:00:43]} 37. Bxg2 {[%emt 0:00:05]} h3 {[%emt 0:00:08]} 38. Bh1 {[%emt 0:00:05]} Kf7 {[%emt 0:06:13]} 39. b5 {[%emt 0:00:43]} Rb8 {[%emt 0:02:09]} 40. Rb7 {[%emt 0:00:07]} Rc8 {[%emt 0:01:25]} 41. Ke3 {[%emt 0:02:10]} Ke6 {[%emt 0:01:12]} 42. Kf3 {[%emt 0:00:51]} d5 {[%emt 0:00:18]} 43. exd5+ {[%emt 0:00:33]} Nxd5 {[%emt 0:00:13]} 44. Kg3 {[%emt 0:00:06]} Nf4 {[%emt 0:01:02]} 45. b6 {[%emt 0:00:39]} Ne2+ {[%emt 0:01:08]} 46. Kh2 {[%emt 0:00:14]} Rf8 {[%emt 0:01:11]} 47. c7 {[%emt 0:00:39]} Rxf2+ {[%emt 0:00:06]} 48. Kxh3 {[%emt 0:00:05]} Nf4+ {[%emt 0:00:57]} 49. Kg3 {[%emt 0:00:06]} Rc2 {[%emt 0:00:12]} 50. Bf3 {[%emt 0:00:23]} Kd6 {[%emt 0:01:02]} 51. Rb8 {[%emt 0:00:10]} 1-0

[Event "34rd NATO Championship 2024"]
[Site "Rhodes"]
[Date "2024.10.22"]
[Round "3.4"]
[White "Bohn, Ulrich"]
[Black "Aizpurua, Patrick Emilio"]
[Result "0-1"]
[ECO "A45"]
[WhiteElo "2149"]
[BlackElo "2322"]
[Annotator "RC"]
[PlyCount "108"]
[EventDate "2024.09.18"]
[EventType "swiss"]
[EventCountry "GRE"]
[SourceTitle "playchess.com"]
[Source "ChessBase"]
[SourceQuality "1"]
[TimeControl "5400+30"]

1. d4 {[%emt 0:00:16]} Nf6 {[%emt 0:00:18]} 2. Bf4 {[%emt 0:00:08]} g6 {[%emt 0:00:07]} 3. Nc3 {[%emt 0:00:07]} d5 {[%emt 0:00:05]} 4. e3 {[%emt 0:00:13]} Bg7 {[%emt 0:00:09]} 5. h4 {[%emt 0:00:12]} h5 {[%emt 0:00:07]} 6. Nf3 {[%emt 0:00:07]} O-O {[%emt 0:00:16]} 7. Qd2 {[%emt 0:00:06]} c5 {[%emt 0:05:52]} 8. O-O-O {[%emt 0:00:25]} Nc6 {[%emt 0:04:29]} 9. Ne5 {[%emt 0:05:21]} Bf5 {[%emt 0:09:02]} 10. f3 {[%emt 0:16:08]} Rc8 {[%emt 0:02:16]} 11. Kb1 {[%emt 0:03:18]} Qa5 {[%emt 0:11:40]} 12. Nxc6 {[%emt 0:01:41]} Rxc6 {[%emt 0:00:17]} 13. e4 {[%emt 0:14:58]} dxe4 {[%emt 0:05:48]} 14. fxe4 {[%emt 0:11:56]} cxd4 {[%emt 0:10:52]} 15. Nd5 {[%emt 0:03:48]} Qxd2 {[%emt 0:03:14]} 16. Nxe7+ {[%emt 0:00:12]} Kh7 {[%emt 0:00:05]} 17. Bxd2 {[%emt 0:00:14]} Nxe4 {[%emt 0:04:45]} 18. Nxc6 {[%emt 0:04:50]} bxc6 {[%emt 0:00:01]} 19. Bd3 {[%emt 0:02:02]} Nf2 {[%emt 0:01:30]} 20. Bxf5 {[%emt 0:01:07]} gxf5 {[%emt 0:00:02]} 21. Kc1 {[%emt 0:07:19]} Bf6 {[%emt 0:06:16]} 22. g3 {[%emt 0:15:57]} Nxh1 {[%emt 0:08:09]} 23. Rxh1 {[%emt 0:00:05]} Be5 {[%emt 0:00:03]} 24. Rf1 {[%emt 0:03:12]} Kg6 {[%emt 0:01:15]} 25. b4 {[%emt 0:00:16]} Re8 {[%emt 0:01:17]} 26. Rf3 {[%emt 0:00:46]} Bd6 {[%emt 0:09:03]} 27. Rd3 {[%emt 0:02:54]} c5 {[%emt 0:01:40]} 28. bxc5 {[%emt 0:02:07]} Bxc5 {[%emt 0:00:02]} 29. Bf4 {[%emt 0:00:12]} Re6 {[%emt 0:05:18]} 30. Kb2 {[%emt 0:02:23]} Rb6+ {[%emt 0:00:13]} 31. Rb3 {[%emt 0:00:06]} Bb4 {[%emt 0:00:06]} 32. Kc1 {[%emt 0:01:19]} Kf6 {[%emt 0:05:14]} 33. Kd1 {[%emt 0:00:46]} Ke6 {[%emt 0:00:11]} 34. Ke2 {[%emt 0:00:20]} Kd5 {[%emt 0:00:47]} 35. Kd3 {[%emt 0:00:17]} a5 {[%emt 0:02:28]} 36. a3 {[%emt 0:01:17]} Bc5 {[%emt 0:00:29]} 37. a4 {[%emt 0:01:56]} Bb4 {[%emt 0:01:52]} 38. Bd2 {[%emt 0:00:23]} Rg6 {[%emt 0:00:28]} 39. Bf4 {[%emt 0:00:37]} Rg8 {[%emt 0:01:07]} 40. Bc7 {[%emt 0:00:22]} Re8 {[%emt 0:00:15]} 41. Bf4 {[%emt 0:00:01]} Re1 {[%emt 0:00:08]} 42. Rb2 {[%emt 0:01:07]} Rd1+ {[%emt 0:00:32]} 43. Ke2 {[%emt 0:00:03]} Ra1 {[%emt 0:00:04]} 44. Rb3 {[%emt 0:00:27]} Ke4 {[%emt 0:00:25]} 45. Bc7 {[%emt 0:00:29]} Rxa4 {[%emt 0:00:34]} 46. Rf3 {[%emt 0:00:04]} Ra2 {[%emt 0:01:41]} 47. Rf4+ {[%emt 0:00:01]} Kd5 {[%emt 0:00:12]} 48. Rxf5+ {[%emt 0:00:23]} Kc4 {[%emt 0:00:59]} 49. Kd1 {[%emt 0:01:42]} a4 {[%emt 0:00:07]} 50. Rxh5 {[%emt 0:00:10]} a3 {[%emt 0:00:08]} 51. Ba5 {[%emt 0:01:12]} Ra1+ {[%emt 0:00:19]} 52. Ke2 {[%emt 0:00:00]} Re1+ {[%emt 0:00:14]} 53. Kf2 {[%emt 0:00:01]} a2 {[%emt 0:00:32]} 54. Bxb4 {[%emt 0:00:04]} Kxb4 {[%emt 0:00:05]} 0-1

[Event "34rd NATO Championship 2024"]
[Site "Rhodes"]
[Date "2024.10.22"]
[Round "3.5"]
[White "Pedersen, Finn"]
[Black "Tetepoulidis, Ioannis"]
[Result "1/2-1/2"]
[ECO "A48"]
[WhiteElo "2282"]
[BlackElo "2100"]
[Annotator "RC"]
[PlyCount "88"]
[EventDate "2024.09.18"]
[EventType "swiss"]
[EventCountry "GRE"]
[SourceTitle "playchess.com"]
[Source "ChessBase"]
[SourceQuality "1"]
[TimeControl "5400+30"]

1. Nf3 {[%emt 0:00:11]} Nf6 {[%emt 0:00:04]} 2. d4 {[%emt 0:00:10]} g6 {[%emt 0:00:04]} 3. e3 {[%emt 0:00:45]} Bg7 {[%emt 0:00:15]} 4. Be2 {[%emt 0:00:19]} b6 {[%emt 0:00:58]} 5. O-O {[%emt 0:00:13]} Bb7 {[%emt 0:00:02]} 6. b3 {[%emt 0:02:39]} c5 {[%emt 0:04:32]} 7. c3 {[%emt 0:01:57]} O-O {[%emt 0:00:58]} 8. Nbd2 {[%emt 0:00:32]} Ne4 {[%emt 0:09:54]} 9. Nxe4 {[%emt 0:01:50]} Bxe4 {[%emt 0:00:20]} 10. Nd2 {[%emt 0:00:38]} Bb7 {[%emt 0:00:10]} 11. Bb2 {[%emt 0:00:21]} d6 {[%emt 0:07:39]} 12. Bf3 {[%emt 0:02:59]} Qc7 {[%emt 0:00:41]} 13. Re1 {[%emt 0:03:55]} Nd7 {[%emt 0:05:50]} 14. Rc1 {[%emt 0:02:46]} e5 {[%emt 0:18:38]} 15. e4 {[%emt 0:02:01]} Rad8 {[%emt 0:07:21]} 16. Nc4 {[%emt 0:07:27]} Nf6 {[%emt 0:09:39]} 17. dxe5 {[%emt 0:02:36]} dxe5 {[%emt 0:00:07]} 18. Qc2 {[%emt 0:00:11]} Rd7 {[%emt 0:03:59]} 19. Rcd1 {[%emt 0:00:19]} Rfd8 {[%emt 0:00:04]} 20. Rxd7 {[%emt 0:00:26]} Rxd7 {[%emt 0:00:02]} 21. Bc1 {[%emt 0:01:31]} h5 {[%emt 0:06:28]} 22. h3 {[%emt 0:00:54]} Ne8 {[%emt 0:02:11]} 23. Ne3 {[%emt 0:06:16]} Qd8 {[%emt 0:02:05]} 24. g4 {[%emt 0:03:47]} h4 {[%emt 0:07:55]} 25. b4 {[%emt 0:03:56]} cxb4 {[%emt 0:02:01]} 26. cxb4 {[%emt 0:00:07]} Nc7 {[%emt 0:00:18]} 27. Rd1 {[%emt 0:02:21]} Ne6 {[%emt 0:01:42]} 28. Rxd7 {[%emt 0:00:34]} Qxd7 {[%emt 0:00:08]} 29. Nd5 {[%emt 0:02:18]} Nd4 {[%emt 0:00:36]} 30. Qd1 {[%emt 0:00:43]} f5 {[%emt 0:02:45]} 31. gxf5 {[%emt 0:04:24]} gxf5 {[%emt 0:00:03]} 32. Bg2 {[%emt 0:00:37]} fxe4 {[%emt 0:03:23]} 33. Nc3 {[%emt 0:01:36]} Qf7 {[%emt 0:02:59]} 34. Nxe4 {[%emt 0:01:29]} Qg6 {[%emt 0:00:41]} 35. f3 {[%emt 0:06:16]} Bh6 {[%emt 0:01:33]} 36. Kh1 {[%emt 0:05:03]} Bxc1 {[%emt 0:01:24]} 37. Qxc1 {[%emt 0:00:09]} Bxe4 {[%emt 0:00:26]} 38. fxe4 {[%emt 0:02:48]} Qg3 {[%emt 0:00:07]} 39. Qc8+ {[%emt 0:02:31]} Kg7 {[%emt 0:00:39]} 40. Qd7+ {[%emt 0:00:41]} Kf6 {[%emt 0:00:31]} 41. Qd8+ {[%emt 0:01:11]} Kg6 {[%emt 0:00:50]} 42. Qg8+ {[%emt 0:01:08]} Kh5 {[%emt 0:00:27]} 43. Qf7+ {[%emt 0:01:50]} Kg5 {[%emt 0:00:10]} 44. Qg7+ {[%emt 0:01:53]} Kh5 {[%emt 0:00:42]} 1/2-1/2

[Event "34rd NATO Championship 2024"]
[Site "Rhodes"]
[Date "2024.10.22"]
[Round "3.6"]
[White "Casteleijn, Diederick"]
[Black "Helbig, Mark"]
[Result "1/2-1/2"]
[ECO "B12"]
[WhiteElo "2128"]
[BlackElo "2280"]
[Annotator "RC"]
[PlyCount "51"]
[EventDate "2024.09.18"]
[EventType "swiss"]
[EventCountry "GRE"]
[SourceTitle "playchess.com"]
[Source "ChessBase"]
[SourceQuality "1"]
[TimeControl "5400+30"]

1. e4 {[%emt 0:00:14]} c6 {[%emt 0:00:46]} 2. d4 {[%emt 0:00:18]} d5 {[%emt 0:00:09]} 3. e5 {[%emt 0:01:00]} c5 {[%emt 0:00:38]} 4. dxc5 {[%emt 0:00:25]} e6 {[%emt 0:00:31]} 5. a3 {[%emt 0:00:52]} Bxc5 {[%emt 0:02:08]} 6. Qg4 {[%emt 0:00:47]} Ne7 {[%emt 0:02:55]} 7. Bd3 {[%emt 0:08:51]} Nbc6 {[%emt 0:05:05]} 8. Nf3 {[%emt 0:02:38]} Ng6 {[%emt 0:03:45]} 9. b4 {[%emt 0:09:51]} Be7 {[%emt 0:08:08]} 10. Bb2 {[%emt 0:01:24]} Qc7 {[%emt 0:05:00]} 11. Qg3 {[%emt 0:01:13]} O-O {[%emt 0:02:22]} 12. O-O {[%emt 0:09:26]} f5 {[%emt 0:02:19]} 13. Re1 {[%emt 0:02:37]} Bd7 {[%emt 0:07:48]} 14. Nbd2 {[%emt 0:03:12]} a5 {[%emt 0:01:27]} 15. b5 {[%emt 0:04:55]} Na7 {[%emt 0:05:08]} 16. a4 {[%emt 0:03:01]} Nc8 {[%emt 0:01:30]} 17. c4 {[%emt 0:10:33]} Nb6 {[%emt 0:05:27]} 18. Rec1 {[%emt 0:05:09]} dxc4 {[%emt 0:04:00]} 19. Bxc4 {[%emt 0:03:17]} Qd8 {[%emt 0:03:49]} 20. Bb3 {[%emt 0:04:21]} Bb4 {[%emt 0:01:54]} 21. Rd1 {[%emt 0:09:48]} Rc8 {[%emt 0:01:38]} 22. Bd4 {[%emt 0:04:29]} Nd5 {[%emt 0:01:44]} 23. Nc4 {[%emt 0:02:11]} Ngf4 {[%emt 0:10:44]} 24. Ra2 {[%emt 0:00:32]} Qe7 {[%emt 0:03:08]} 25. Nd6 {[%emt 0:02:18]} Rb8 {[%emt 0:00:38]} 26. Qg5 {[%emt 0:03:16]} 1/2-1/2

[Event "34rd NATO Championship 2024"]
[Site "Rhodes"]
[Date "2024.10.22"]
[Round "3.7"]
[White "Pavlidis, Anastasios"]
[Black "Tocco, Paolo"]
[Result "1-0"]
[ECO "A96"]
[WhiteElo "2279"]
[BlackElo "2010"]
[Annotator "RC"]
[PlyCount "141"]
[EventDate "2024.09.18"]
[EventType "swiss"]
[EventCountry "GRE"]
[SourceTitle "playchess.com"]
[Source "ChessBase"]
[SourceQuality "1"]
[TimeControl "5400+30"]

1. d4 {[%emt 0:00:07]} e6 {[%emt 0:00:08]} 2. c4 {[%emt 0:00:33]} f5 {[%emt 0:00:06]} 3. Nf3 {[%emt 0:01:07]} Nf6 {[%emt 0:00:06]} 4. g3 {[%emt 0:01:02]} Be7 {[%emt 0:00:05]} 5. Bg2 {[%emt 0:00:13]} O-O {[%emt 0:00:07]} 6. O-O {[%emt 0:00:49]} d6 {[%emt 0:00:04]} 7. Nc3 {[%emt 0:03:16]} Ne4 {[%emt 0:00:30]} 8. Qc2 {[%emt 0:01:41]} Nxc3 {[%emt 0:00:07]} 9. Qxc3 {[%emt 0:01:48]} Bf6 {[%emt 0:00:12]} 10. Qc2 {[%emt 0:14:04]} Nc6 {[%emt 0:01:20]} 11. Rd1 {[%emt 0:06:18]} Qe7 {[%emt 0:01:20]} 12. a3 {[%emt 0:02:48]} e5 {[%emt 0:02:50]} 13. d5 {[%emt 0:01:35]} Nd8 {[%emt 0:00:47]} 14. Rb1 {[%emt 0:02:17]} g5 {[%emt 0:06:07]} 15. b4 {[%emt 0:02:24]} Qg7 {[%emt 0:04:28]} 16. c5 {[%emt 0:06:35]} Nf7 {[%emt 0:07:01]} 17. Nd2 {[%emt 0:09:14]} h5 {[%emt 0:06:53]} 18. Nf1 {[%emt 0:16:21]} h4 {[%emt 0:02:49]} 19. Bd2 {[%emt 0:00:41]} f4 {[%emt 0:10:42]} 20. Rdc1 {[%emt 0:05:08]} Nh6 {[%emt 0:05:23]} 21. cxd6 {[%emt 0:00:49]} cxd6 {[%emt 0:00:07]} 22. Rb3 {[%emt 0:04:02]} Bd8 {[%emt 0:00:44]} 23. a4 {[%emt 0:10:40]} Bd7 {[%emt 0:18:39]} 24. Rc3 {[%emt 0:00:04]} Ng4 {[%emt 0:00:19]} 25. h3 {[%emt 0:02:30]} fxg3 {[%emt 0:10:30]} 26. hxg4 {[%emt 0:00:53]} gxf2+ {[%emt 0:00:08]} 27. Kh1 {[%emt 0:00:39]} Bxg4 {[%emt 0:00:31]} 28. Bh3 {[%emt 0:02:46]} Bxh3 {[%emt 0:03:47]} 29. Rxh3 {[%emt 0:00:04]} g4 {[%emt 0:00:05]} 30. Rc3 {[%emt 0:00:30]} g3 {[%emt 0:01:10]} 31. Qe4 {[%emt 0:00:12]} Qh7 {[%emt 0:11:30]} 32. Qxh7+ {[%emt 0:00:53]} Kxh7 {[%emt 0:00:00]} 33. Kg2 {[%emt 0:00:25]} Rg8 {[%emt 0:00:54]} 34. Nxg3 {[%emt 0:04:00]} hxg3 {[%emt 0:00:08]} 35. Rh1+ {[%emt 0:00:07]} Kg7 {[%emt 0:01:28]} 36. Rxg3+ {[%emt 0:00:47]} Kf8 {[%emt 0:00:21]} 37. Kxf2 {[%emt 0:00:50]} Bb6+ {[%emt 0:00:51]} 38. e3 {[%emt 0:00:15]} Rxg3 {[%emt 0:00:11]} 39. Kxg3 {[%emt 0:00:09]} Kg7 {[%emt 0:00:06]} 40. a5 {[%emt 0:00:28]} Bd8 {[%emt 0:00:42]} 41. Rc1 {[%emt 0:00:14]} Kf7 {[%emt 0:01:58]} 42. Kg4 {[%emt 0:00:14]} Ke8 {[%emt 0:00:33]} 43. Kf5 {[%emt 0:01:34]} Kd7 {[%emt 0:00:11]} 44. Rh1 {[%emt 0:00:24]} Be7 {[%emt 0:00:07]} 45. Rh7 {[%emt 0:00:20]} Rf8+ {[%emt 0:00:19]} 46. Ke4 {[%emt 0:00:08]} a6 {[%emt 0:00:58]} 47. Be1 {[%emt 0:00:19]} Kd8 {[%emt 0:00:37]} 48. Bg3 {[%emt 0:01:23]} Ke8 {[%emt 0:00:22]} 49. Bh4 {[%emt 0:00:45]} Bxh4 {[%emt 0:00:17]} 50. Rxh4 {[%emt 0:00:04]} Rf7 {[%emt 0:00:03]} 51. Rh6 {[%emt 0:00:57]} Kd7 {[%emt 0:00:02]} 52. Rh5 {[%emt 0:00:08]} Ke7 {[%emt 0:00:31]} 53. Rg5 {[%emt 0:00:17]} Kd7 {[%emt 0:00:07]} 54. Rf5 {[%emt 0:00:11]} Rh7 {[%emt 0:00:08]} 55. Rf6 {[%emt 0:00:41]} Ke7 {[%emt 0:02:26]} 56. Re6+ {[%emt 0:00:04]} Kd7 {[%emt 0:00:22]} 57. Kf5 {[%emt 0:00:54]} Rf7+ {[%emt 0:02:26]} 58. Rf6 {[%emt 0:00:49]} Rg7 {[%emt 0:01:37]} 59. Rf8 {[%emt 0:00:13]} Rh7 {[%emt 0:01:33]} 60. Kg6 {[%emt 0:00:43]} Rh3 {[%emt 0:00:42]} 61. Rf7+ {[%emt 0:00:04]} Kc8 {[%emt 0:00:20]} 62. Kf6 {[%emt 0:00:21]} Rh6+ {[%emt 0:01:28]} 63. Kf5 {[%emt 0:00:44]} Rh3 {[%emt 0:00:25]} 64. Ke6 {[%emt 0:00:06]} Rxe3 {[%emt 0:01:02]} 65. Kxd6 {[%emt 0:00:05]} Kb8 {[%emt 0:00:06]} 66. Rf8+ {[%emt 0:00:14]} Ka7 {[%emt 0:00:07]} 67. Ke6 {[%emt 0:00:08]} e4 {[%emt 0:00:07]} 68. Rf4 {[%emt 0:00:50]} Re1 {[%emt 0:00:19]} 69. d6 {[%emt 0:00:16]} e3 {[%emt 0:01:23]} 70. d7 {[%emt 0:00:11]} Rd1 {[%emt 0:00:20]} 71. Re4 {[%emt 0:03:35]} 1-0

[Event "34rd NATO Championship 2024"]
[Site "Rhodes"]
[Date "2024.10.22"]
[Round "3.8"]
[White "Mestek, Igor"]
[Black "Reizniece-Ozola, Dana"]
[Result "0-1"]
[ECO "B06"]
[WhiteElo "2080"]
[BlackElo "2255"]
[Annotator "RC"]
[PlyCount "88"]
[EventDate "2024.09.18"]
[EventType "swiss"]
[EventCountry "GRE"]
[SourceTitle "playchess.com"]
[Source "ChessBase"]
[SourceQuality "1"]
[TimeControl "5400+30"]

1. e4 {[%emt 0:03:01]} d6 {[%emt 0:00:10]} 2. d4 {[%emt 0:00:40]} g6 {[%emt 0:00:07]} 3. Nc3 {[%emt 0:00:22]} Bg7 {[%emt 0:00:08]} 4. Be3 {[%emt 0:02:25]} a6 {[%emt 0:00:07]} 5. g3 {[%emt 0:06:56]} b5 {[%emt 0:01:03]} 6. Bg2 {[%emt 0:00:41]} Bb7 {[%emt 0:00:02]} 7. a4 {[%emt 0:11:38]} c6 {[%emt 0:21:10]} 8. Nge2 {[%emt 0:05:18]} Nd7 {[%emt 0:00:51]} 9. O-O {[%emt 0:02:36]} Qc7 {[%emt 0:05:34]} 10. h3 {[%emt 0:02:26]} Ngf6 {[%emt 0:04:39]} 11. f4 {[%emt 0:11:44]} b4 {[%emt 0:11:32]} 12. e5 {[%emt 0:05:35]} bxc3 {[%emt 0:00:37]} 13. exf6 {[%emt 0:00:07]} Nxf6 {[%emt 0:02:44]} 14. Nxc3 {[%emt 0:03:36]} O-O {[%emt 0:02:42]} 15. a5 {[%emt 0:01:45]} Rab8 {[%emt 0:04:35]} 16. Qd2 {[%emt 0:01:40]} c5 {[%emt 0:05:27]} 17. dxc5 {[%emt 0:06:58]} Bxg2 {[%emt 0:01:06]} 18. cxd6 {[%emt 0:02:05]} exd6 {[%emt 0:01:46]} 19. Bb6 {[%emt 0:00:45]} Qc4 {[%emt 0:16:30]} 20. Qxg2 {[%emt 0:08:29]} Nd7 {[%emt 0:01:23]} 21. Ra4 {[%emt 0:00:52]} Qe6 {[%emt 0:01:32]} 22. Re4 {[%emt 0:00:54]} Qf6 {[%emt 0:00:48]} 23. Rd1 {[%emt 0:07:42]} Nxb6 {[%emt 0:01:19]} 24. axb6 {[%emt 0:00:06]} d5 {[%emt 0:02:08]} 25. Nxd5 {[%emt 0:00:44]} Qxb2 {[%emt 0:00:05]} 26. c4 {[%emt 0:00:17]} Qb3 {[%emt 0:02:38]} 27. Rd2 {[%emt 0:03:19]} f5 {[%emt 0:00:36]} 28. Re3 {[%emt 0:02:43]} Qxc4 {[%emt 0:00:24]} 29. Qe2 {[%emt 0:01:03]} Qc5 {[%emt 0:06:27]} 30. Kh2 {[%emt 0:00:44]} Bd4 {[%emt 0:03:23]} 31. Red3 {[%emt 0:03:50]} Rfe8 {[%emt 0:00:59]} 32. Qf3 {[%emt 0:00:30]} Re4 {[%emt 0:00:46]} 33. Nc3 {[%emt 0:04:15]} Bxc3 {[%emt 0:01:24]} 34. Rxc3 {[%emt 0:00:06]} Qxb6 {[%emt 0:00:08]} 35. Qd3 {[%emt 0:00:57]} Rbe8 {[%emt 0:01:05]} 36. Rcc2 {[%emt 0:00:55]} Re1 {[%emt 0:01:12]} 37. Qc4+ {[%emt 0:00:26]} Kg7 {[%emt 0:01:11]} 38. Qc3+ {[%emt 0:00:05]} Kh6 {[%emt 0:00:17]} 39. h4 {[%emt 0:01:06]} Qg1+ {[%emt 0:00:32]} 40. Kh3 {[%emt 0:00:08]} R8e3 {[%emt 0:00:23]} 41. Rg2 {[%emt 0:00:19]} Qh1+ {[%emt 0:00:13]} 42. Rh2 {[%emt 0:00:09]} Qf1+ {[%emt 0:00:15]} 43. Rhg2 {[%emt 0:00:07]} Rxc3 {[%emt 0:00:12]} 44. Rxc3 {[%emt 0:00:06]} Re2 {[%emt 0:00:04]} 0-1

[Event "34rd NATO Championship 2024"]
[Site "Rhodes"]
[Date "2024.10.22"]
[Round "3.9"]
[White "Andersen, Hans-Christoph"]
[Black "Peraino, Andrew"]
[Result "1-0"]
[ECO "B06"]
[WhiteElo "2229"]
[BlackElo "1965"]
[Annotator "RC"]
[PlyCount "78"]
[EventDate "2024.09.18"]
[EventType "swiss"]
[EventCountry "GRE"]
[SourceTitle "playchess.com"]
[Source "ChessBase"]
[SourceQuality "1"]
[TimeControl "5400+30"]

1. d4 {[%emt 0:00:54]} g6 {[%emt 0:05:09]} 2. e4 {[%emt 0:01:10]} d6 {[%emt 0:00:12]} 3. Nf3 {[%emt 0:01:15]} Bg7 {[%emt 0:02:45]} 4. Bd3 {[%emt 0:01:34]} Nd7 {[%emt 0:05:19]} 5. O-O {[%emt 0:02:18]} e5 {[%emt 0:03:19]} 6. dxe5 {[%emt 0:04:41]} dxe5 {[%emt 0:00:13]} 7. Bc4 {[%emt 0:07:48]} Ngf6 {[%emt 0:06:32]} 8. Qe2 {[%emt 0:06:27]} O-O {[%emt 0:01:59]} 9. a4 {[%emt 0:11:48]} a5 {[%emt 0:13:46]} 10. Rd1 {[%emt 0:03:22]} Qe7 {[%emt 0:01:05]} 11. b3 {[%emt 0:04:35]} b6 {[%emt 0:05:23]} 12. Ba3 {[%emt 0:05:14]} c5 {[%emt 0:00:08]} 13. Nc3 {[%emt 0:03:50]} Bb7 {[%emt 0:01:05]} 14. Nd2 {[%emt 0:07:58]} Nh5 {[%emt 0:05:56]} 15. g3 {[%emt 0:01:52]} Kh8 {[%emt 0:00:27]} 16. Bb5 {[%emt 0:05:53]} Nhf6 {[%emt 0:08:10]} 17. Nc4 {[%emt 0:03:40]} Rab8 {[%emt 0:03:10]} 18. Rd6 {[%emt 0:04:48]} Bc8 {[%emt 0:00:33]} 19. Rad1 {[%emt 0:01:04]} Rd8 {[%emt 0:00:36]} 20. Nd5 {[%emt 0:06:26]} Nxd5 {[%emt 0:01:08]} 21. R1xd5 {[%emt 0:00:45]} Bf6 {[%emt 0:09:16]} 22. Qd3 {[%emt 0:06:11]} Bb7 {[%emt 0:03:29]} 23. Rxd7 {[%emt 0:00:43]} Bxd5 {[%emt 0:00:08]} 24. Rxe7 {[%emt 0:01:38]} Bxc4 {[%emt 0:00:15]} 25. Qxc4 {[%emt 0:00:27]} Bxe7 {[%emt 0:00:11]} 26. Qxf7 {[%emt 0:00:20]} Bf8 {[%emt 0:09:52]} 27. Bb2 {[%emt 0:02:12]} Rd1+ {[%emt 0:00:23]} 28. Kg2 {[%emt 0:00:09]} Bg7 {[%emt 0:00:07]} 29. Be8 {[%emt 0:02:03]} h6 {[%emt 0:03:03]} 30. Qxg6 {[%emt 0:00:20]} Rbd8 {[%emt 0:01:02]} 31. Bxe5 {[%emt 0:01:26]} Bxe5 {[%emt 0:00:36]} 32. Qxh6+ {[%emt 0:00:11]} Kg8 {[%emt 0:00:10]} 33. Qe6+ {[%emt 0:00:11]} Kh7 {[%emt 0:01:48]} 34. Qxe5 {[%emt 0:01:31]} R1d6 {[%emt 0:00:23]} 35. h4 {[%emt 0:01:13]} Kg8 {[%emt 0:00:51]} 36. h5 {[%emt 0:00:32]} Kf8 {[%emt 0:00:07]} 37. h6 {[%emt 0:01:19]} Rxh6 {[%emt 0:00:56]} 38. Qf4+ {[%emt 0:00:12]} Kg7 {[%emt 0:00:13]} 39. Qg5+ {[%emt 0:00:28]} Rg6 {[%emt 0:01:12]} 1-0